[Event "*** Titled Tuesday Blitz"]
[Site "Chess.com"]
[Date "2020.10.20"]
[Round "5"]
[White "TheCastleHunter"]
[Black "regular_legs"]
[Result "1-0"]
[WhiteElo "2370"]
[BlackElo "2498"]
[TimeControl "180+1"]
[EndTime "10:57:21 PDT"]
[Termination "TheCastleHunter won on time"]

1. e4 {[%clk 0:03:00.9]} 1... e5 {[%clk 0:02:59]} 2. Nf3 {[%clk 0:03:00.5]} 2...
Nc6 {[%clk 0:02:59.1]} 3. Bc4 {[%clk 0:03:00.4]} 3... Bc5 {[%clk 0:02:58.3]} 4.
O-O {[%clk 0:02:59.8]} 4... Nf6 {[%clk 0:02:58.6]} 5. c3 {[%clk 0:03:00.1]} 5...
Nxe4 {[%clk 0:02:51.8]} 6. d4 {[%clk 0:02:59.6]} 6... exd4 {[%clk 0:02:49.5]} 7.
cxd4 {[%clk 0:02:57.4]} 7... Be7 {[%clk 0:02:48.5]} 8. Nc3 {[%clk 0:02:52.5]}
8... Nxc3 {[%clk 0:02:46.9]} 9. bxc3 {[%clk 0:02:53.4]} 9... d5 {[%clk
0:02:44.4]} 10. Bd3 {[%clk 0:02:52.3]} 10... O-O {[%clk 0:02:41.2]} 11. Bf4
{[%clk 0:02:49.3]} 11... Bg4 {[%clk 0:02:37.8]} 12. h3 {[%clk 0:02:48.1]} 12...
Bh5 {[%clk 0:02:35.1]} 13. Re1 {[%clk 0:02:44.8]} 13... Bg6 {[%clk 0:02:28.9]}
14. Bxg6 {[%clk 0:02:39]} 14... hxg6 {[%clk 0:02:28.4]} 15. Ne5 {[%clk
0:02:37.6]} 15... Nxe5 {[%clk 0:02:26.1]} 16. Bxe5 {[%clk 0:02:38.5]} 16... c6
{[%clk 0:02:21.3]} 17. Rb1 {[%clk 0:02:35.5]} 17... Qd7 {[%clk 0:02:20.4]} 18.
Qb3 {[%clk 0:02:24.2]} 18... b5 {[%clk 0:02:19.2]} 19. Qc2 {[%clk 0:02:18.4]}
19... Bd6 {[%clk 0:02:15.4]} 20. Bxd6 {[%clk 0:02:09.7]} 20... Qxd6 {[%clk
0:02:16.3]} 21. Re5 {[%clk 0:02:09.9]} 21... Rfe8 {[%clk 0:02:05.7]} 22. Rbe1
{[%clk 0:02:09.3]} 22... Kf8 {[%clk 0:01:55.5]} 23. a4 {[%clk 0:02:00.1]} 23...
a6 {[%clk 0:01:38.2]} 24. axb5 {[%clk 0:01:44.1]} 24... axb5 {[%clk 0:01:35.6]}
25. f4 {[%clk 0:01:44.4]} 25... Rad8 {[%clk 0:01:16.9]} 26. f5 {[%clk
0:01:17.8]} 26... Rxe5 {[%clk 0:01:14]} 27. dxe5 {[%clk 0:01:05.6]} 27... Qc5+
{[%clk 0:01:13.6]} 28. Kh1 {[%clk 0:01:05.5]} 28... d4 {[%clk 0:01:05.5]} 29.
fxg6 {[%clk 0:01:01]} 29... d3 {[%clk 0:01:01]} 30. Qd2 {[%clk 0:00:57.9]} 30...
fxg6 {[%clk 0:00:57.7]} 31. e6 {[%clk 0:00:58.1]} 31... Ke7 {[%clk 0:00:43]} 32.
Qf4 {[%clk 0:00:35.8]} 32... Qf5 {[%clk 0:00:05.2]} 33. Qc7+ {[%clk 0:00:25]}
33... Ke8 {[%clk 0:00:04.8]} 34. Qxc6+ {[%clk 0:00:19.2]} 34... Ke7 {[%clk
0:00:05.1]} 35. Qc7+ {[%clk 0:00:19.4]} 35... Ke8 {[%clk 0:00:05.1]} 36. e7
{[%clk 0:00:19.8]} 36... Rd5 {[%clk 0:00:01.5]} 37. Qc6+ {[%clk 0:00:19.4]} 1-0

[Event "*** Titled Tuesday Blitz"]
[Site "Chess.com"]
[Date "2020.10.20"]
[Round "5"]
[White "Shubinkirill2003"]
[Black "Alexander_Moskalenko"]
[Result "0-1"]
[WhiteElo "2651"]
[BlackElo "2892"]
[TimeControl "180+1"]
[EndTime "10:57:23 PDT"]
[Termination "Alexander_Moskalenko won by checkmate"]

1. e4 {[%clk 0:03:00.9]} 1... e6 {[%clk 0:02:56.8]} 2. d4 {[%clk 0:03:00.3]}
2... d5 {[%clk 0:02:56.7]} 3. Nc3 {[%clk 0:03:00.1]} 3... Nf6 {[%clk 0:02:55.4]}
4. Bg5 {[%clk 0:02:59.2]} 4... dxe4 {[%clk 0:02:54.3]} 5. Nxe4 {[%clk
0:02:58.8]} 5... Be7 {[%clk 0:02:54.7]} 6. Bxf6 {[%clk 0:02:55]} 6... gxf6
{[%clk 0:02:52.9]} 7. Qd2 {[%clk 0:02:54.6]} 7... a6 {[%clk 0:02:52]} 8. g3
{[%clk 0:02:51.4]} 8... f5 {[%clk 0:02:49.3]} 9. Nc3 {[%clk 0:02:44.4]} 9... Nd7
{[%clk 0:01:39.7]} 10. Bg2 {[%clk 0:02:42.1]} 10... Rb8 {[%clk 0:01:36.3]} 11.
O-O-O {[%clk 0:02:32.5]} 11... b5 {[%clk 0:01:35.4]} 12. d5 {[%clk 0:02:30.9]}
12... e5 {[%clk 0:01:27]} 13. Kb1 {[%clk 0:02:08.2]} 13... Nb6 {[%clk
0:01:07.9]} 14. f4 {[%clk 0:01:43.7]} 14... Nc4 {[%clk 0:00:56.8]} 15. Qe2
{[%clk 0:01:25.9]} 15... e4 {[%clk 0:00:55]} 16. g4 {[%clk 0:01:22.9]} 16... Qd6
{[%clk 0:00:28.7]} 17. a3 {[%clk 0:00:56.6]} 17... Bf6 {[%clk 0:00:28.3]} 18.
Na2 {[%clk 0:00:45.7]} 18... Nxa3+ {[%clk 0:00:21.4]} 19. bxa3 {[%clk 0:00:42]}
19... b4 {[%clk 0:00:21.8]} 20. Nc1 {[%clk 0:00:33.2]} 20... bxa3+ {[%clk
0:00:18.9]} 21. Nb3 {[%clk 0:00:33.1]} 21... a5 {[%clk 0:00:17]} 22. gxf5 {[%clk
0:00:31.7]} 22... O-O {[%clk 0:00:11.5]} 23. Qxe4 {[%clk 0:00:23.5]} 23... Rb4
{[%clk 0:00:10.6]} 24. Qe3 {[%clk 0:00:15.9]} 24... a4 {[%clk 0:00:10.3]} 25.
Ka2 {[%clk 0:00:16.2]} 25... axb3+ {[%clk 0:00:10.1]} 26. cxb3 {[%clk
0:00:17.1]} 26... Bd7 {[%clk 0:00:08.8]} 27. Ne2 {[%clk 0:00:15.4]} 27... Re8
{[%clk 0:00:08.7]} 28. Qg3+ {[%clk 0:00:14.7]} 28... Kh8 {[%clk 0:00:09.2]} 29.
Nc1 {[%clk 0:00:14.8]} 29... Bxf5 {[%clk 0:00:09]} 30. Rhf1 {[%clk 0:00:11]}
30... Rg8 {[%clk 0:00:08.5]} 31. Qf2 {[%clk 0:00:08.7]} 31... Rgb8 {[%clk
0:00:07.8]} 32. Qg3 {[%clk 0:00:06.5]} 32... Bb2 {[%clk 0:00:07.2]} 33. Bh3
{[%clk 0:00:05.7]} 33... Bc2 {[%clk 0:00:06.3]} 34. Rg1 {[%clk 0:00:04.3]} 34...
Qf6 {[%clk 0:00:04.8]} 35. Nd3 {[%clk 0:00:03.3]} 35... Bxb3+ {[%clk 0:00:04.6]}
36. Kb1 {[%clk 0:00:04.2]} 36... a2# {[%clk 0:00:04.9]} 0-1

[Event "*** Titled Tuesday Blitz"]
[Site "Chess.com"]
[Date "2020.10.20"]
[Round "5"]
[White "AndrewDGreen"]
[Black "AleksanderHnydiuk"]
[Result "1-0"]
[WhiteElo "2406"]
[BlackElo "2534"]
[TimeControl "180+1"]
[EndTime "10:57:23 PDT"]
[Termination "AndrewDGreen won on time"]

1. e4 {[%clk 0:03:00.9]} 1... c5 {[%clk 0:02:59.3]} 2. Nf3 {[%clk 0:03:00.4]}
2... e6 {[%clk 0:02:59.4]} 3. c3 {[%clk 0:02:59.7]} 3... d5 {[%clk 0:02:59]} 4.
exd5 {[%clk 0:02:58.1]} 4... Qxd5 {[%clk 0:02:59.9]} 5. d4 {[%clk 0:02:56.1]}
5... Nf6 {[%clk 0:02:59.9]} 6. Be3 {[%clk 0:02:52.3]} 6... cxd4 {[%clk
0:02:57.7]} 7. cxd4 {[%clk 0:02:53.2]} 7... Bb4+ {[%clk 0:02:51.5]} 8. Nc3
{[%clk 0:02:53.5]} 8... O-O {[%clk 0:02:49.2]} 9. Bd3 {[%clk 0:02:48.1]} 9...
Bd7 {[%clk 0:02:48.9]} 10. O-O {[%clk 0:02:47.1]} 10... Bxc3 {[%clk 0:02:49.1]}
11. bxc3 {[%clk 0:02:48]} 11... Bb5 {[%clk 0:02:49.6]} 12. Bxb5 {[%clk
0:02:26.8]} 12... Qxb5 {[%clk 0:02:50.5]} 13. Rb1 {[%clk 0:02:25.1]} 13... Qa6
{[%clk 0:02:49.8]} 14. Ne5 {[%clk 0:02:18.9]} 14... Nc6 {[%clk 0:02:37.5]} 15.
Nxc6 {[%clk 0:02:13.5]} 15... Qxc6 {[%clk 0:02:36.5]} 16. Qb3 {[%clk 0:02:11.4]}
16... b6 {[%clk 0:02:33.1]} 17. c4 {[%clk 0:02:11.3]} 17... Rac8 {[%clk
0:02:30.7]} 18. Rbc1 {[%clk 0:02:11]} 18... Rfd8 {[%clk 0:02:21.9]} 19. Rfd1
{[%clk 0:02:10.8]} 19... Ne4 {[%clk 0:02:00.6]} 20. Bf4 {[%clk 0:02:05]} 20...
Qb7 {[%clk 0:01:35.8]} 21. Qf3 {[%clk 0:01:53.9]} 21... Nd6 {[%clk 0:01:31.5]}
22. c5 {[%clk 0:01:51]} 22... Qxf3 {[%clk 0:01:29.8]} 23. gxf3 {[%clk
0:01:48.2]} 23... Nf5 {[%clk 0:01:11.9]} 24. Be3 {[%clk 0:01:40.5]} 24... Kf8
{[%clk 0:01:01]} 25. Kf1 {[%clk 0:01:34.6]} 25... Ke8 {[%clk 0:00:58.9]} 26. Ke2
{[%clk 0:01:34.3]} 26... bxc5 {[%clk 0:00:55.3]} 27. dxc5 {[%clk 0:01:24.2]}
27... Rxd1 {[%clk 0:00:54.1]} 28. Kxd1 {[%clk 0:01:25.1]} 28... Kd7 {[%clk
0:00:50.5]} 29. Ke2 {[%clk 0:01:20.5]} 29... Kc6 {[%clk 0:00:49.8]} 30. Rc4
{[%clk 0:01:18.1]} 30... Rb8 {[%clk 0:00:45.2]} 31. Ra4 {[%clk 0:01:16.8]} 31...
Rb2+ {[%clk 0:00:44.7]} 32. Kd3 {[%clk 0:01:13.8]} 32... Nxe3 {[%clk 0:00:33.3]}
33. fxe3 {[%clk 0:01:14.7]} 33... Kb7 {[%clk 0:00:14.6]} 34. h4 {[%clk
0:01:11.1]} 34... Rh2 {[%clk 0:00:13.2]} 35. a3 {[%clk 0:01:06.2]} 35... h5
{[%clk 0:00:12.2]} 36. Rc4 {[%clk 0:01:02.9]} 36... Kc6 {[%clk 0:00:10.5]} 37.
Kc3 {[%clk 0:00:59.1]} 37... a5 {[%clk 0:00:09.4]} 38. Kb3 {[%clk 0:00:55.8]}
38... Rh3 {[%clk 0:00:09]} 39. Rf4 {[%clk 0:00:54.1]} 39... f6 {[%clk
0:00:07.8]} 40. Ka4 {[%clk 0:00:49.2]} 40... e5 {[%clk 0:00:08]} 41. Rf5 {[%clk
0:00:46.8]} 41... Rxh4+ {[%clk 0:00:07.5]} 42. Kxa5 {[%clk 0:00:46.1]} 42...
Kxc5 {[%clk 0:00:06.7]} 43. a4 {[%clk 0:00:43.8]} 43... Rh1 {[%clk 0:00:04.7]}
44. f4 {[%clk 0:00:40.9]} 44... Kd5 {[%clk 0:00:03]} 45. fxe5 {[%clk 0:00:39.9]}
45... Ke6 {[%clk 0:00:01.4]} 46. exf6 {[%clk 0:00:33.5]} 46... Kxf5 {[%clk
0:00:01.1]} 47. f7 {[%clk 0:00:33.2]} 1-0

[Event "*** Titled Tuesday Blitz"]
[Site "Chess.com"]
[Date "2020.10.20"]
[Round "5"]
[White "AndreyNeves"]
[Black "thedjoker98"]
[Result "0-1"]
[WhiteElo "2263"]
[BlackElo "2567"]
[TimeControl "180+1"]
[EndTime "10:57:25 PDT"]
[Termination "thedjoker98 won on time"]

1. d4 {[%clk 0:03:00.9]} 1... d5 {[%clk 0:02:57.8]} 2. c4 {[%clk 0:03:00.2]}
2... c6 {[%clk 0:02:57.4]} 3. Nf3 {[%clk 0:03:00.1]} 3... Nf6 {[%clk 0:02:56.9]}
4. e3 {[%clk 0:02:58.1]} 4... Bg4 {[%clk 0:02:56.5]} 5. Qb3 {[%clk 0:02:54.2]}
5... Qb6 {[%clk 0:02:56]} 6. Ne5 {[%clk 0:02:51.7]} 6... Bf5 {[%clk 0:02:53.9]}
7. Nc3 {[%clk 0:02:50.4]} 7... e6 {[%clk 0:02:53.8]} 8. Bd2 {[%clk 0:02:44.9]}
8... Nbd7 {[%clk 0:02:53.4]} 9. Nxd7 {[%clk 0:02:40.5]} 9... Nxd7 {[%clk
0:02:52.4]} 10. Be2 {[%clk 0:02:33.1]} 10... Be7 {[%clk 0:02:51.7]} 11. O-O
{[%clk 0:02:31.5]} 11... Qxb3 {[%clk 0:02:49.5]} 12. axb3 {[%clk 0:02:30.9]}
12... Bc2 {[%clk 0:02:50.4]} 13. Bd1 {[%clk 0:02:25.7]} 13... Bd3 {[%clk
0:02:50.1]} 14. Be2 {[%clk 0:02:25.7]} 14... Bc2 {[%clk 0:02:50.4]} 15. Bd1
{[%clk 0:02:25.5]} 15... Bd3 {[%clk 0:02:49.8]} 16. Be2 {[%clk 0:02:25.4]} 16...
Bxe2 {[%clk 0:02:50.1]} 17. Nxe2 {[%clk 0:02:24.8]} 17... O-O {[%clk 0:02:51]}
18. f3 {[%clk 0:02:16]} 18... Rfd8 {[%clk 0:02:48.3]} 19. e4 {[%clk 0:02:15.3]}
19... dxe4 {[%clk 0:02:45.6]} 20. fxe4 {[%clk 0:02:14.5]} 20... a6 {[%clk
0:02:43.5]} 21. Bc3 {[%clk 0:02:06.5]} 21... Nf6 {[%clk 0:02:39.4]} 22. Ng3
{[%clk 0:02:06.1]} 22... Ng4 {[%clk 0:02:19.9]} 23. Rae1 {[%clk 0:02:04.1]}
23... Bh4 {[%clk 0:02:17]} 24. Rf3 {[%clk 0:01:54.3]} 24... Rd7 {[%clk
0:02:08.1]} 25. h3 {[%clk 0:01:52.6]} 25... Nf6 {[%clk 0:02:05.6]} 26. e5 {[%clk
0:01:47.3]} 26... Ne8 {[%clk 0:01:55]} 27. Ref1 {[%clk 0:01:46.6]} 27... Bd8
{[%clk 0:01:45.1]} 28. Ne4 {[%clk 0:01:42.5]} 28... Bb6 {[%clk 0:01:44.4]} 29.
c5 {[%clk 0:01:42.1]} 29... Bc7 {[%clk 0:01:41]} 30. Nd6 {[%clk 0:01:42.2]}
30... Bxd6 {[%clk 0:01:37.2]} 31. exd6 {[%clk 0:01:40.9]} 31... g6 {[%clk
0:01:30.3]} 32. h4 {[%clk 0:01:39]} 32... Ng7 {[%clk 0:01:29]} 33. g4 {[%clk
0:01:37.8]} 33... h5 {[%clk 0:01:28.5]} 34. gxh5 {[%clk 0:01:28.8]} 34... Nxh5
{[%clk 0:01:27.7]} 35. Bd2 {[%clk 0:01:23.4]} 35... Ng7 {[%clk 0:01:22.8]} 36.
Bf4 {[%clk 0:01:11.2]} 36... b6 {[%clk 0:01:18]} 37. Be5 {[%clk 0:00:58.2]}
37... Rb8 {[%clk 0:01:15.5]} 38. b4 {[%clk 0:00:46]} 38... Nf5 {[%clk
0:00:54.8]} 39. h5 {[%clk 0:00:41.5]} 39... gxh5 {[%clk 0:00:54.9]} 40. Rxf5
{[%clk 0:00:35.4]} 40... exf5 {[%clk 0:00:53.8]} 41. Rxf5 {[%clk 0:00:35.4]}
41... bxc5 {[%clk 0:00:49.9]} 42. Rxh5 {[%clk 0:00:22.1]} 42... f6 {[%clk
0:00:50.2]} 43. Bxf6 {[%clk 0:00:19.8]} 43... Kf7 {[%clk 0:00:46.6]} 44. Be5
{[%clk 0:00:09.9]} 44... cxd4 {[%clk 0:00:44.3]} 45. Rh7+ {[%clk 0:00:09]} 45...
Ke6 {[%clk 0:00:44.2]} 46. Rxd7 {[%clk 0:00:08.5]} 46... Kxd7 {[%clk 0:00:43.6]}
47. Bxd4 {[%clk 0:00:09.4]} 47... Rxb4 {[%clk 0:00:43.6]} 48. Bc5 {[%clk
0:00:10.3]} 48... Rxb2 {[%clk 0:00:43.6]} 49. Kf1 {[%clk 0:00:09.5]} 49... Rb5
{[%clk 0:00:44.5]} 0-1

[Event "*** Titled Tuesday Blitz"]
[Site "Chess.com"]
[Date "2020.10.20"]
[Round "5"]
[White "Snegokhod"]
[Black "szefru"]
[Result "1-0"]
[WhiteElo "2449"]
[BlackElo "2250"]
[TimeControl "180+1"]
[EndTime "10:57:26 PDT"]
[Termination "Snegokhod won by checkmate"]

1. e4 {[%clk 0:03:00.9]} 1... Nf6 {[%clk 0:02:58.5]} 2. Nc3 {[%clk 0:03:00.1]}
2... d5 {[%clk 0:02:58.7]} 3. exd5 {[%clk 0:02:59.9]} 3... Nxd5 {[%clk
0:02:58.7]} 4. d4 {[%clk 0:02:58.8]} 4... g6 {[%clk 0:02:53.4]} 5. Nf3 {[%clk
0:02:58]} 5... Bg7 {[%clk 0:02:50.8]} 6. Bc4 {[%clk 0:02:56.3]} 6... c6 {[%clk
0:02:50.9]} 7. O-O {[%clk 0:02:55.5]} 7... O-O {[%clk 0:02:50.2]} 8. h3 {[%clk
0:02:54.5]} 8... Be6 {[%clk 0:02:30.3]} 9. Bb3 {[%clk 0:02:48.1]} 9... h6 {[%clk
0:02:21.2]} 10. Ne4 {[%clk 0:02:47]} 10... a5 {[%clk 0:02:12.6]} 11. Nc5 {[%clk
0:02:46.1]} 11... Bc8 {[%clk 0:02:04.4]} 12. a4 {[%clk 0:02:44.5]} 12... b6
{[%clk 0:02:01.5]} 13. Nd3 {[%clk 0:02:44]} 13... Nd7 {[%clk 0:01:58.3]} 14. Re1
{[%clk 0:02:42.2]} 14... N7f6 {[%clk 0:01:53]} 15. Nfe5 {[%clk 0:02:36.5]} 15...
Bb7 {[%clk 0:01:45.2]} 16. c3 {[%clk 0:02:30.8]} 16... Rc8 {[%clk 0:01:44.5]}
17. Qe2 {[%clk 0:02:11.1]} 17... e6 {[%clk 0:01:41]} 18. Bd2 {[%clk 0:02:04.3]}
18... Kh7 {[%clk 0:01:36.4]} 19. Rad1 {[%clk 0:02:02.7]} 19... Nd7 {[%clk
0:01:30.3]} 20. Nf3 {[%clk 0:01:50.3]} 20... Ba6 {[%clk 0:01:28.4]} 21. Bc2
{[%clk 0:01:48.8]} 21... c5 {[%clk 0:01:25.2]} 22. Qe4 {[%clk 0:01:38.9]} 22...
cxd4 {[%clk 0:01:22.5]} 23. Nxd4 {[%clk 0:01:37.4]} 23... Bxd3 {[%clk
0:01:09.2]} 24. Qxd3 {[%clk 0:01:33.2]} 24... Nc5 {[%clk 0:01:09.1]} 25. Qf3
{[%clk 0:01:27]} 25... Qd7 {[%clk 0:01:07.6]} 26. Bc1 {[%clk 0:01:22.5]} 26...
Nxa4 {[%clk 0:01:02.9]} 27. h4 {[%clk 0:01:17]} 27... Naxc3 {[%clk 0:00:40.5]}
28. bxc3 {[%clk 0:01:15.1]} 28... Rxc3 {[%clk 0:00:41.1]} 29. Qe2 {[%clk
0:01:04.4]} 29... Bxd4 {[%clk 0:00:39.7]} 30. Rxd4 {[%clk 0:01:03]} 30... Qc7
{[%clk 0:00:40]} 31. Rd2 {[%clk 0:00:39]} 31... Rc8 {[%clk 0:00:40]} 32. Bxg6+
{[%clk 0:00:32.5]} 32... fxg6 {[%clk 0:00:38.7]} 33. Bb2 {[%clk 0:00:30.8]}
33... Rc6 {[%clk 0:00:35.7]} 34. h5 {[%clk 0:00:29]} 34... Qf7 {[%clk 0:00:35]}
35. Qe4 {[%clk 0:00:25.2]} 35... Qf5 {[%clk 0:00:35.3]} 36. hxg6+ {[%clk
0:00:25.3]} 36... Qxg6 {[%clk 0:00:35.4]} 37. Qe5 {[%clk 0:00:23.5]} 37... Rg8
{[%clk 0:00:33.8]} 38. g3 {[%clk 0:00:23.5]} 38... a4 {[%clk 0:00:28.4]} 39.
Rxd5 {[%clk 0:00:22.2]} 39... exd5 {[%clk 0:00:26.3]} 40. Qxd5 {[%clk
0:00:22.8]} 40... Rc7 {[%clk 0:00:24.7]} 41. Re6 {[%clk 0:00:20.4]} 41... Qb1+
{[%clk 0:00:22.7]} 42. Kg2 {[%clk 0:00:19.3]} 42... Qxb2 {[%clk 0:00:23.1]} 43.
Qf5+ {[%clk 0:00:18.9]} 43... Kh8 {[%clk 0:00:22.5]} 44. Rxh6+ {[%clk
0:00:18.2]} 44... Kg7 {[%clk 0:00:22.3]} 45. Rh7# {[%clk 0:00:17.8]} 1-0

[Event "*** Titled Tuesday Blitz"]
[Site "Chess.com"]
[Date "2020.10.20"]
[Round "5"]
[White "cassoulet"]
[Black "YIYUKI"]
[Result "1-0"]
[WhiteElo "2698"]
[BlackElo "2336"]
[TimeControl "180+1"]
[EndTime "10:57:27 PDT"]
[Termination "cassoulet won by resignation"]

1. e4 {[%clk 0:03:00.9]} 1... d6 {[%clk 0:02:57.3]} 2. d4 {[%clk 0:02:59.6]}
2... Nf6 {[%clk 0:02:57.2]} 3. Nc3 {[%clk 0:02:59.3]} 3... g6 {[%clk 0:02:57.3]}
4. Be2 {[%clk 0:02:58.7]} 4... Bg7 {[%clk 0:02:56.8]} 5. Be3 {[%clk 0:02:59.3]}
5... O-O {[%clk 0:02:54]} 6. h4 {[%clk 0:02:59.4]} 6... c5 {[%clk 0:02:49.4]} 7.
d5 {[%clk 0:02:59.1]} 7... e6 {[%clk 0:02:32.5]} 8. dxe6 {[%clk 0:02:58.1]} 8...
Bxe6 {[%clk 0:02:31.1]} 9. h5 {[%clk 0:02:55.2]} 9... Nc6 {[%clk 0:02:29.8]} 10.
Qd2 {[%clk 0:02:54.5]} 10... d5 {[%clk 0:02:28.4]} 11. Bxc5 {[%clk 0:02:47.8]}
11... Re8 {[%clk 0:02:22.8]} 12. hxg6 {[%clk 0:02:42.6]} 12... hxg6 {[%clk
0:02:22.3]} 13. Nf3 {[%clk 0:02:25.7]} 13... Nxe4 {[%clk 0:02:21.5]} 14. Nxe4
{[%clk 0:02:23.5]} 14... dxe4 {[%clk 0:02:22.4]} 15. Qxd8 {[%clk 0:02:12.4]}
15... Raxd8 {[%clk 0:02:21.5]} 16. Ng5 {[%clk 0:02:11.2]} 16... Bxb2 {[%clk
0:02:19.5]} 17. Rb1 {[%clk 0:02:08.1]} 17... Bc3+ {[%clk 0:02:18.9]} 18. Kf1
{[%clk 0:02:08.7]} 18... Bxa2 {[%clk 0:02:14.7]} 19. Rxb7 {[%clk 0:02:05.9]}
19... Re5 {[%clk 0:02:00.4]} 20. Be3 {[%clk 0:01:57.4]} 20... Bc4 {[%clk
0:01:55.7]} 21. Rb1 {[%clk 0:01:03.5]} 21... Ba2 {[%clk 0:01:54.6]} 22. Rb7
{[%clk 0:00:54.8]} 22... a5 {[%clk 0:01:54.2]} 23. g3 {[%clk 0:00:52.8]} 23...
Nd4 {[%clk 0:01:45.4]} 24. Ba6 {[%clk 0:00:46]} 24... Nxc2 {[%clk 0:01:38.1]}
25. Bf4 {[%clk 0:00:45]} 25... Ree8 {[%clk 0:00:53.4]} 26. Rc7 {[%clk
0:00:43.9]} 26... Rd1+ {[%clk 0:00:40.5]} 27. Kg2 {[%clk 0:00:43.9]} 27... Rxh1
{[%clk 0:00:34.6]} 28. Kxh1 {[%clk 0:00:42.2]} 28... Nb4 {[%clk 0:00:34.2]} 29.
Bb5 {[%clk 0:00:39.4]} 29... Be5 {[%clk 0:00:25.9]} 30. Bxe8 {[%clk 0:00:36.3]}
30... Bxc7 {[%clk 0:00:25.5]} 31. Bxc7 {[%clk 0:00:37.2]} 31... a4 {[%clk
0:00:25.5]} 32. Bxa4 {[%clk 0:00:37.2]} 32... Nd3 {[%clk 0:00:25.1]} 33. Nxe4
{[%clk 0:00:36.2]} 33... Bd5 {[%clk 0:00:23.6]} 34. f3 {[%clk 0:00:34.4]} 34...
Bxe4 {[%clk 0:00:23.3]} 35. fxe4 {[%clk 0:00:35.3]} 35... Nf2+ {[%clk
0:00:23.4]} 36. Kg2 {[%clk 0:00:35.6]} 36... Nxe4 {[%clk 0:00:23.8]} 37. Bc2
{[%clk 0:00:35.5]} 37... Nf6 {[%clk 0:00:22.7]} 38. Be5 {[%clk 0:00:35.1]} 38...
Nd7 {[%clk 0:00:22.4]} 39. Bd4 {[%clk 0:00:34.9]} 39... Kf8 {[%clk 0:00:19.4]}
40. Ba4 {[%clk 0:00:34.9]} 40... Nb8 {[%clk 0:00:17.1]} 41. Bb5 {[%clk 0:00:34]}
41... Ke7 {[%clk 0:00:15.8]} 42. Ba7 {[%clk 0:00:32.7]} 42... Nd7 {[%clk
0:00:15.7]} 43. Bxd7 {[%clk 0:00:33]} 43... Kxd7 {[%clk 0:00:16.1]} 44. Kf3
{[%clk 0:00:33.9]} 44... Ke6 {[%clk 0:00:16.1]} 45. Kf4 {[%clk 0:00:34.1]} 45...
Kf6 {[%clk 0:00:15.8]} 46. Bd4+ {[%clk 0:00:34.2]} 46... Ke6 {[%clk 0:00:16.3]}
47. Kg5 {[%clk 0:00:34.4]} 47... Kd5 {[%clk 0:00:14]} 48. Bf6 {[%clk 0:00:33.6]}
48... Ke6 {[%clk 0:00:13.8]} 49. g4 {[%clk 0:00:32.6]} 49... Kd5 {[%clk
0:00:13.6]} 50. Kh6 {[%clk 0:00:32.9]} 50... Ke6 {[%clk 0:00:13.3]} 51. g5
{[%clk 0:00:33.4]} 51... Kf5 {[%clk 0:00:13.1]} 52. Kg7 {[%clk 0:00:33.9]} 52...
Ke6 {[%clk 0:00:13.3]} 53. Kf8 {[%clk 0:00:34.4]} 53... Kd7 {[%clk 0:00:12.9]}
54. Kxf7 {[%clk 0:00:35.3]} 1-0

[Event "*** Titled Tuesday Blitz"]
[Site "Chess.com"]
[Date "2020.10.20"]
[Round "5"]
[White "Durarbayli"]
[Black "AleksibFan"]
[Result "1-0"]
[WhiteElo "2784"]
[BlackElo "2573"]
[TimeControl "180+1"]
[EndTime "10:57:28 PDT"]
[Termination "Durarbayli won on time"]

1. e4 {[%clk 0:03:00.9]} 1... d5 {[%clk 0:02:59.8]} 2. exd5 {[%clk 0:03:00.2]}
2... Qxd5 {[%clk 0:03:00.7]} 3. Nf3 {[%clk 0:02:58.8]} 3... Bg4 {[%clk
0:02:59.8]} 4. Be2 {[%clk 0:02:58.6]} 4... Nf6 {[%clk 0:02:59.6]} 5. d4 {[%clk
0:02:58.2]} 5... e6 {[%clk 0:02:59.1]} 6. c4 {[%clk 0:02:56.3]} 6... Qd7 {[%clk
0:02:58.9]} 7. Qb3 {[%clk 0:02:43.1]} 7... Nc6 {[%clk 0:02:50.7]} 8. Be3 {[%clk
0:02:35.3]} 8... Bb4+ {[%clk 0:02:38.6]} 9. Nc3 {[%clk 0:02:31.4]} 9... O-O
{[%clk 0:02:34.1]} 10. Rd1 {[%clk 0:01:53.1]} 10... Qe7 {[%clk 0:01:49.9]} 11.
a3 {[%clk 0:01:35.2]} 11... Bxc3+ {[%clk 0:01:48.7]} 12. Qxc3 {[%clk 0:01:36.1]}
12... a5 {[%clk 0:01:30.1]} 13. O-O {[%clk 0:01:19.4]} 13... Rfd8 {[%clk
0:01:20.3]} 14. h3 {[%clk 0:01:16.5]} 14... Bh5 {[%clk 0:01:19.5]} 15. Qb3
{[%clk 0:00:58.6]} 15... Rab8 {[%clk 0:00:36.9]} 16. Rfe1 {[%clk 0:00:56]} 16...
Bg6 {[%clk 0:00:22.3]} 17. d5 {[%clk 0:00:36.5]} 17... exd5 {[%clk 0:00:23.2]}
18. cxd5 {[%clk 0:00:37.2]} 18... Ne5 {[%clk 0:00:22]} 19. Ba7 {[%clk
0:00:30.2]} 19... Ra8 {[%clk 0:00:15.9]} 20. Qxb7 {[%clk 0:00:23.7]} 20... Be4
{[%clk 0:00:08.5]} 21. Nxe5 {[%clk 0:00:19.3]} 21... Qxe5 {[%clk 0:00:09.4]} 22.
Bf3 {[%clk 0:00:19.9]} 22... Qf5 {[%clk 0:00:08.7]} 23. Bxe4 {[%clk 0:00:14.8]}
23... Nxe4 {[%clk 0:00:09.6]} 24. Be3 {[%clk 0:00:13.2]} 24... Nd6 {[%clk
0:00:07.6]} 25. Qxc7 {[%clk 0:00:12.9]} 25... a4 {[%clk 0:00:07.6]} 26. Qc3
{[%clk 0:00:08.9]} 26... Rdc8 {[%clk 0:00:05.8]} 27. Qd3 {[%clk 0:00:09.2]}
27... Qd7 {[%clk 0:00:05.2]} 28. Bd4 {[%clk 0:00:09.2]} 28... f6 {[%clk
0:00:04.3]} 29. Re6 {[%clk 0:00:06.5]} 29... Nc4 {[%clk 0:00:04.3]} 30. Bc3
{[%clk 0:00:04.3]} 30... Rd8 {[%clk 0:00:04.4]} 31. Qe4 {[%clk 0:00:04.3]} 31...
Rac8 {[%clk 0:00:03.3]} 32. Re7 {[%clk 0:00:03.9]} 32... Qb5 {[%clk 0:00:01.8]}
33. Re1 {[%clk 0:00:04.3]} 33... Rd7 {[%clk 0:00:01.4]} 34. Qg4 {[%clk
0:00:04.9]} 1-0